fUST/lending_fUST_20241220
["ID","MTS","AMOUNT","RATE_DAILY","PERIOD"]
[346084737,1734695455684,-500.0,0.00023561,6]
[346084738,1734695455693,-500.0,0.00023561,6]
[346084739,1734695455703,-500.0,0.00023561,6]
[346084740,1734695455712,-500.0,0.00023561,6]
[346084741,1734695455725,-500.0,0.00023561,6]
[346084742,1734695455734,-500.0,0.00023561,6]
[346084743,1734695455744,-500.0,0.00023561,6]
[346084744,1734695455754,-596.87131118,0.00023561,6]
[346084745,1734695455764,-500.0,0.00023561,6]
[346084746,1734695455774,-500.0,0.00023561,6]
[346084747,1734695455783,-500.0,0.00023561,6]
[346084748,1734695455793,-500.0,0.00023561,6]
[346084749,1734695455803,-500.0,0.00023561,6]
[346084750,1734695455812,-500.0,0.00023561,6]
[346084751,1734695455822,-500.0,0.00023561,6]
[346084752,1734695455831,-505.64,0.00023561,6]
[346084753,1734695455841,-500.0,0.00023561,6]
[346084754,1734695455850,-500.0,0.00023561,6]
[346084755,1734695455860,-500.0,0.00023561,6]
[346084756,1734695455870,-500.0,0.00023561,6]
[346084757,1734695455879,-542.38322568,0.00023561,6]
[346084758,1734695455889,-792.84,0.00023561,6]
[346084759,1734695455899,-500.0,0.00023561,6]
[346084760,1734695455909,-500.0,0.00023561,6]
[346084761,1734695455919,-666.3,0.00023561,6]
[346084762,1734695455928,-500.0,0.00023561,6]
[346084763,1734695455938,-500.0,0.00023561,6]
[346084764,1734695455947,-500.0,0.00023561,6]
[346084765,1734695455956,-500.0,0.00023561,6]
[346084766,1734695455966,-380.90786284,0.00023561,6]
[346084767,1734695455979,-500.0,0.00023561,6]
[346084768,1734695455989,-500.0,0.00023561,6]
[346084769,1734695455998,-546.14,0.00023561,6]
[346084770,1734695456008,-500.0,0.00023561,6]
[346084771,1734695456018,-1569.66,0.00023561,6]
[346084772,1734695456027,-523.59757462,0.00023561,6]
[346084773,1734695456037,-292.87992919,0.00023561,6]
[346084774,1734695456047,-210.24267769,0.00023561,6]
[346084775,1734695456056,-1153.1,0.00023561,6]
[346084776,1734695456066,-500.0,0.00023561,6]
[346084777,1734695456075,-500.0,0.00023561,6]
[346084778,1734695456085,-500.0,0.00023561,6]
[346084779,1734695456094,-500.0,0.00023561,6]
[346084780,1734695456103,-825.59,0.00023561,6]
[346084781,1734695456113,-168.0,0.00023561,6]
[346084782,1734695456123,-500.0,0.00023561,6]
[346084783,1734695456132,-909.44,0.00023561,6]
[346084784,1734695456143,-661.6,0.00023561,6]
[346084785,1734695456153,-500.0,0.00023561,6]
[346084786,1734695456162,-500.0,0.00023561,6]
[346084787,1734695456172,-1058.73,0.00023561,6]
[346084788,1734695456182,-500.0,0.00023561,6]
[346084789,1734695456193,-500.0,0.00023561,6]
[346084790,1734695456206,-742.68,0.00023561,6]
[346084791,1734695456216,-500.0,0.00023561,6]
[346084792,1734695456228,-598.99,0.00023561,6]
[346084793,1734695456238,-500.0,0.00023561,6]
[346084794,1734695456248,-500.0,0.00023561,6]
[346084795,1734695456257,-500.0,0.00023561,6]
[346084796,1734695456267,-711.99,0.00023561,6]
[346084797,1734695456278,-500.0,0.00023561,6]
[346084798,1734695456287,-500.0,0.00023561,6]
[346084799,1734695456297,-500.0,0.00023561,6]
[346084800,1734695456307,-500.0,0.00023561,6]
[346084801,1734695456316,-500.0,0.00023561,6]
[346084802,1734695456326,-1097.79,0.00023561,6]
[346084803,1734695456336,-674.85,0.00023561,6]
[346084804,1734695456346,-739.83,0.00023561,6]
[346084805,1734695456356,-331.53000871,0.00023561,6]
[346084806,1734695456365,-233.88984089,0.00023561,6]
[346084807,1734695456375,-500.0,0.00023561,6]
[346084808,1734695456385,-1008.24,0.00023561,6]
[346084809,1734695456395,-500.0,0.00023561,6]
[346084810,1734695456404,-500.0,0.00023561,6]
[346084811,1734695456413,-500.0,0.00023561,6]
[346084812,1734695456423,-500.0,0.00023561,6]
[346084813,1734695456433,-500.0,0.00023561,6]
[346084814,1734695456444,-1582.09,0.00023561,6]
[346084815,1734695456454,-954.11,0.00023561,6]
[346084816,1734695456463,-500.0,0.00023561,6]
[346084817,1734695456476,-1591.5,0.00023561,6]
[346084818,1734695456486,-625.41,0.00023561,6]
[346084819,1734695456495,-496.41729746,0.00023561,6]
[346084820,1734695456505,-974.47,0.00023561,6]
[346084821,1734695456515,-891.65,0.00023561,6]
[346084822,1734695456524,-940.38,0.00023561,6]
[346084823,1734695456534,-500.0,0.00023561,6]
[346084824,1734695456544,-500.0,0.00023561,6]
[346084825,1734695456554,-500.0,0.00023561,6]
[346084826,1734695456564,-500.0,0.00023561,6]
[346084827,1734695456573,-500.0,0.00023561,6]
[346084828,1734695456583,-1059.47,0.00023561,6]
[346084829,1734695456592,-500.0,0.00023561,6]
[346084830,1734695456602,-500.0,0.00023561,6]
[346084831,1734695456612,-500.0,0.00023561,6]
[346084832,1734695456621,-1737.43,0.00023561,6]
[346084833,1734695456631,-500.0,0.00023561,6]
[346084834,1734695456640,-8856.88,0.00023561,6]
[346084835,1734695456650,-1259.63,0.00023561,6]
[346084836,1734695456659,-604.9,0.00023561,6]
[346084837,1734695456669,-558.68799485,0.00023561,6]
[346084838,1734695456679,-500.0,0.00023561,6]
[346084839,1734695456689,-500.0,0.00023561,6]
[346084840,1734695456699,-341.08560982,0.00023561,6]
[346084841,1734695456708,-500.0,0.00023561,6]
[346084842,1734695456718,-350.0,0.00023561,2]
[346084843,1734695456729,-26119.07,0.00023561,6]
[346084844,1734695456739,-12484.53,0.00023561,6]
[346084845,1734695456749,-6479.93,0.00023561,6]
[346084846,1734695456758,-500.0,0.00023561,6]
[346084847,1734695456768,-500.0,0.00023561,6]
[346084848,1734695456778,-872.14,0.00023561,6]
[346084849,1734695456787,-500.0,0.00023561,6]
[346084850,1734695456798,-500.0,0.00023561,6]
[346084851,1734695456808,-500.0,0.00023561,6]
[346084852,1734695456818,-500.0,0.00023561,6]
[346084853,1734695456827,-1760.75,0.00023561,6]
[346084854,1734695456837,-500.0,0.00023561,6]
[346084855,1734695456847,-500.0,0.00023561,6]
[346084856,1734695456857,-6293.53,0.00023561,6]
[346084857,1734695456867,-500.0,0.00023561,6]
[346084858,1734695456877,-1957.09,0.00023561,6]
[346084859,1734695456887,-500.0,0.00023561,6]
[346084860,1734695456897,-500.0,0.00023561,6]
[346084861,1734695456907,-3441.37,0.00023561,6]
[346084862,1734695456916,-1705.94,0.00023561,6]
[346084863,1734695456926,-500.0,0.00023561,6]
[346084864,1734695456936,-547.62900759,0.00023561,6]
[346084865,1734695456945,-1606.97,0.00023561,6]
[346084866,1734695456955,-500.0,0.00023561,6]
[346084867,1734695456966,-500.0,0.00023561,6]
[346084868,1734695456978,-500.0,0.00023561,6]
[346084869,1734695456989,-500.0,0.00023561,6]
[346084870,1734695456999,-500.0,0.00023561,6]
[346084871,1734695457008,-500.0,0.00023561,6]
[346084872,1734695457018,-710.49,0.00023561,6]
[346084873,1734695457028,-500.0,0.00023561,6]
[346084874,1734695457038,-500.0,0.00023561,6]
[346084875,1734695457047,-1045.23,0.00023561,6]
[346084876,1734695457057,-659.67,0.00023561,6]
[346084877,1734695457068,-10652.65,0.00023561,6]
[346084878,1734695457077,-500.0,0.00023561,6]
[346084879,1734695457087,-500.0,0.00023561,6]
[346084880,1734695457097,-500.0,0.00023561,6]
[346084881,1734695457107,-500.0,0.00023561,6]
[346084882,1734695457286,-500.0,0.00023561,6]
[346084883,1734695457299,-500.0,0.00023561,6]
[346084884,1734695457309,-564.57,0.00023561,6]
[346084885,1734695457319,-604.22192269,0.00023561,6]
[346084886,1734695457329,-500.0,0.00023561,6]
[346084887,1734695457339,-1659.22,0.00023561,6]
[346084888,1734695457348,-500.0,0.00023561,6]
[346084889,1734695457358,-2623.57,0.00023561,6]
[346084890,1734695457367,-3774.55,0.00023561,6]
[346084891,1734695457377,-2715.88,0.00023561,2]
[346084892,1734695457386,-500.0,0.00023561,6]
[346084893,1734695457397,-500.0,0.00023561,6]
[346084894,1734695457406,-2144.16,0.00023561,6]
[346084895,1734695457416,-735.95,0.00023561,6]
[346084896,1734695457425,-500.0,0.00023561,6]
[346084897,1734695457435,-1503.77,0.00023561,6]
[346084898,1734695457444,-635.66,0.00023561,6]
[346084899,1734695457454,-1406.33,0.00023561,6]
[346084900,1734695457463,-1377.63,0.00023561,6]
[346084901,1734695457474,-1700.87,0.00023561,6]
[346084902,1734695457483,-648.56,0.00023561,6]
[346084903,1734695457493,-594.82,0.00023561,6]
[346084904,1734695457503,-679.09,0.00023561,6]
[346084905,1734695457512,-500.0,0.00023561,6]
[346084906,1734695457522,-500.0,0.00023561,6]
[346084907,1734695457531,-1820.66,0.00023561,6]
[346084908,1734695457541,-500.0,0.00023561,6]
[346084909,1734695457550,-656.63,0.00023561,6]
[346084910,1734695457559,-500.0,0.00023561,6]
[346084911,1734695457569,-510.72,0.00023561,6]
[346084912,1734695457578,-500.0,0.00023561,6]
[346084913,1734695457587,-983.9,0.00023561,6]
[346084914,1734695457597,-3397.33,0.00023561,6]
[346084915,1734695457607,-557.8,0.00023561,6]
[346084916,1734695457617,-500.0,0.00023561,6]
[346084917,1734695457627,-500.0,0.00023561,6]
[346084918,1734695457636,-304.96546965,0.00023561,6]
[346084919,1734695457646,-688.72,0.00023561,6]
[346084920,1734695457655,-500.0,0.00023561,6]
[346084921,1734695457664,-500.0,0.00023561,6]
[346084922,1734695457673,-870.15,0.00023561,6]
[346084923,1734695457683,-500.0,0.00023561,6]
[346084924,1734695457692,-466.86856799,0.00023644,2]
[346084925,1734695457702,-1839.26178874,0.00023709,2]
[346084926,1734695457711,-600.0,0.00023717,2]
[346084927,1734695457721,-1500.0,0.00023722,2]
[346084928,1734695457732,-1500.0,0.00023722,2]
[346084929,1734695457741,-1500.0,0.00023722,2]
[346084930,1734695457751,-329.36031173,0.00023783,2]
[346084931,1734695457760,-466.86856799,0.00023798,2]
[346084932,1734695457770,-420.0,0.00023816,2]
[346084933,1734695457779,-500.0,0.00023835,6]
[346084934,1734695457788,-500.0,0.00023835,6]
[346084935,1734695457798,-500.0,0.00023835,6]
[346084936,1734695457807,-500.0,0.00023835,6]
[346084937,1734695457816,-500.0,0.00023835,6]
[346084938,1734695457826,-500.0,0.00023835,6]
[346084939,1734695457835,-500.0,0.00023835,6]
[346084940,1734695457845,-500.0,0.00023835,6]
[346084941,1734695457855,-500.0,0.00023835,6]
[346084942,1734695457864,-500.0,0.00023835,6]
[346084943,1734695457874,-500.0,0.00023835,6]
[346084944,1734695457883,-247.63957412,0.00023835,6]
[346084945,1734695457893,-500.0,0.00023835,6]
[346084946,1734695457902,-500.0,0.00023835,6]
[346084947,1734695457917,-500.0,0.00023835,6]
[346084948,1734695457926,-505.64,0.00023835,6]
[346084949,1734695457936,-500.0,0.00023835,6]
[346084950,1734695457945,-500.0,0.00023835,6]
[346084951,1734695457955,-500.0,0.00023835,6]
[346084952,1734695457965,-500.0,0.00023835,6]
[346084953,1734695457977,-792.84,0.00023835,6]
[346084954,1734695457987,-500.0,0.00023835,6]
[346084955,1734695457997,-500.0,0.00023835,6]
[346084956,1734695458006,-666.3,0.00023835,6]
[346084957,1734695458016,-500.0,0.00023835,6]
[346084958,1734695458026,-500.0,0.00023835,6]
[346084959,1734695458035,-500.0,0.00023835,6]
[346084960,1734695458045,-500.0,0.00023835,6]
[346084961,1734695458055,-500.0,0.00023835,6]
[346084962,1734695458064,-299.86428479,0.00023835,6]
[346084963,1734695458074,-546.14,0.00023835,6]
[346084964,1734695458083,-500.0,0.00023835,6]
[346084965,1734695458093,-1569.66,0.00023835,6]
[346084966,1734695458103,-1153.1,0.00023835,6]
[346084967,1734695458112,-500.0,0.00023835,6]
[346084968,1734695458121,-288.30081253,0.00023835,6]
[346084969,1734695458131,-500.0,0.00023835,6]
[346084970,1734695458140,-500.0,0.00023835,6]
[346084971,1734695458150,-825.59,0.00023835,6]
[346084972,1734695458159,-168.0,0.00023835,6]
[346084973,1734695458168,-500.0,0.00023835,6]
[346084974,1734695458178,-909.44,0.00023835,6]
[346084975,1734695458189,-661.6,0.00023835,6]
[346084976,1734695458201,-500.0,0.00023835,6]
[346084977,1734695458211,-500.0,0.00023835,6]
[346084978,1734695458220,-1058.73,0.00023835,6]
[346084979,1734695458235,-500.0,0.00023835,6]
[346084980,1734695458244,-500.0,0.00023835,6]
[346084981,1734695458254,-742.68,0.00023835,6]
[346084982,1734695458263,-500.0,0.00023835,6]
[346084983,1734695458272,-598.99,0.00023835,6]
[346084984,1734695458282,-500.0,0.00023835,6]
[346084985,1734695458291,-500.0,0.00023835,6]
[346084986,1734695458301,-500.0,0.00023835,6]
[346084987,1734695458310,-711.99,0.00023835,6]
[346084988,1734695458319,-500.0,0.00023835,6]
[346084989,1734695458328,-500.0,0.00023835,6]
[346084990,1734695458337,-500.0,0.00023835,6]
[346084991,1734695458347,-500.0,0.00023835,6]
[346084992,1734695458356,-500.0,0.00023835,6]
[346084993,1734695458366,-1097.79,0.00023835,6]
[346084994,1734695458375,-674.85,0.00023835,6]
[346084995,1734695458384,-739.83,0.00023835,6]
[346084996,1734695458394,-500.0,0.00023835,6]
[346084997,1734695458403,-1008.24,0.00023835,6]
[346084998,1734695458413,-500.0,0.00023835,6]
[346084999,1734695458422,-500.0,0.00023835,6]
[346085000,1734695458431,-500.0,0.00023835,6]
[346085001,1734695458441,-500.0,0.00023835,6]
[346085002,1734695458450,-500.0,0.00023835,6]
[346085003,1734695458459,-1582.09,0.00023835,6]
[346085004,1734695458469,-954.11,0.00023835,6]
[346085005,1734695458485,-500.0,0.00023835,6]
[346085006,1734695458494,-1591.5,0.00023835,6]
[346085007,1734695458504,-625.41,0.00023835,6]
[346085008,1734695458513,-974.47,0.00023835,6]
[346085009,1734695458523,-891.65,0.00023835,6]
[346085010,1734695458532,-940.38,0.00023835,6]
[346085011,1734695458541,-500.0,0.00023835,6]
[346085012,1734695458551,-500.0,0.00023835,6]
[346085013,1734695458560,-500.0,0.00023835,6]
[346085014,1734695458570,-500.0,0.00023835,6]
[346085015,1734695458580,-574.5327294,0.00023835,6]
[346085016,1734695458590,-500.0,0.00023835,6]
[346085017,1734695458599,-1059.47,0.00023835,6]
[346085018,1734695458609,-268.19086288,0.00023835,6]
[346085019,1734695458618,-500.0,0.00023835,6]
[346085020,1734695458628,-1737.43,0.00023835,6]
[346085021,1734695458637,-500.0,0.00023835,6]
[346085022,1734695458646,-8856.88,0.00023835,6]
[346085023,1734695458656,-1259.63,0.00023835,6]
[346085024,1734695458665,-604.9,0.00023835,6]
[346085025,1734695458674,-500.0,0.00023835,6]
[346085026,1734695458683,-500.0,0.00023835,6]
[346085027,1734695458693,-500.0,0.00023835,6]
[346085028,1734695458702,-350.0,0.00023835,2]
[346085029,1734695458712,-26119.07,0.00023835,6]
[346085030,1734695458721,-12484.53,0.00023835,6]
[346085031,1734695458737,-6479.93,0.00023835,6]
[346085032,1734695458749,-500.0,0.00023835,6]
[346085033,1734695458759,-500.0,0.00023835,6]
[346085034,1734695458768,-872.14,0.00023835,6]
[346085035,1734695458778,-500.0,0.00023835,6]
[346085036,1734695458788,-500.0,0.00023835,6]
[346085037,1734695458798,-500.0,0.00023835,6]
[346085038,1734695458807,-500.0,0.00023835,6]
[346085039,1734695458817,-1760.75,0.00023835,6]
[346085040,1734695458826,-500.0,0.00023835,6]
[346085041,1734695458835,-500.0,0.00023835,6]
[346085042,1734695458845,-6293.53,0.00023835,6]
[346085043,1734695458854,-500.0,0.00023835,6]
[346085044,1734695458863,-1957.09,0.00023835,6]
[346085045,1734695458872,-500.0,0.00023835,6]
[346085046,1734695458881,-500.0,0.00023835,6]
[346085047,1734695458890,-3441.37,0.00023835,6]
[346085048,1734695458900,-1705.94,0.00023835,6]
[346085049,1734695458909,-500.0,0.00023835,6]
[346085050,1734695458918,-1606.97,0.00023835,6]
[346085051,1734695458928,-500.0,0.00023835,6]
[346085052,1734695458937,-500.0,0.00023835,6]
[346085053,1734695458946,-500.0,0.00023835,6]
[346085054,1734695458955,-209.66784319,0.00023835,6]
[346085055,1734695458965,-500.0,0.00023835,6]
[346085056,1734695458977,-500.0,0.00023835,6]
[346085057,1734695458987,-710.49,0.00023835,6]
[346085058,1734695458997,-616.74765505,0.00023835,6]
[346085059,1734695459006,-500.0,0.00023835,6]
[346085060,1734695459016,-1045.23,0.00023835,6]
[346085061,1734695459025,-659.67,0.00023835,6]
[346085062,1734695459034,-10652.65,0.00023835,6]
[346085063,1734695459044,-500.0,0.00023835,6]
[346085064,1734695459053,-500.0,0.00023835,6]
[346085065,1734695459062,-500.0,0.00023835,6]
[346085066,1734695459071,-500.0,0.00023835,6]
[346085067,1734695459081,-500.0,0.00023835,6]
[346085068,1734695459090,-500.0,0.00023835,6]
[346085069,1734695459099,-564.57,0.00023835,6]
[346085070,1734695459108,-500.0,0.00023835,6]
[346085071,1734695459117,-1659.22,0.00023835,6]
[346085072,1734695459126,-500.0,0.00023835,6]
[346085073,1734695459135,-2623.57,0.00023835,6]
[346085074,1734695459144,-3774.55,0.00023835,6]
[346085075,1734695459154,-2715.88,0.00023835,2]
[346085076,1734695459164,-500.0,0.00023835,6]
[346085077,1734695459173,-500.0,0.00023835,6]
[346085078,1734695459183,-2144.16,0.00023835,6]
[346085079,1734695459193,-735.95,0.00023835,6]
[346085080,1734695459205,-500.0,0.00023835,6]
[346085081,1734695459217,-1503.77,0.00023835,6]
[346085082,1734695459230,-635.66,0.00023835,6]
[346085083,1734695459239,-1406.33,0.00023835,6]
[346085084,1734695459249,-1377.63,0.00023835,6]
[346085085,1734695459259,-1700.87,0.00023835,6]
[346085086,1734695459268,-648.56,0.00023835,6]
[346085087,1734695459278,-594.82,0.00023835,6]
[346085088,1734695459288,-679.09,0.00023835,6]
[346085089,1734695459298,-500.0,0.00023835,6]
[346085090,1734695459308,-500.0,0.00023835,6]
[346085091,1734695459318,-1820.66,0.00023835,6]
[346085092,1734695459328,-500.0,0.00023835,6]
[346085093,1734695459339,-656.63,0.00023835,6]
[346085094,1734695459350,-500.0,0.00023835,6]
[346085095,1734695459360,-510.72,0.00023835,6]
[346085096,1734695459370,-500.0,0.00023835,6]
[346085097,1734695459380,-983.9,0.00023835,6]
[346085098,1734695459390,-3397.33,0.00023835,6]
[346085099,1734695459400,-557.8,0.00023835,6]
[346085100,1734695459411,-500.0,0.00023835,6]
[346085101,1734695459421,-500.0,0.00023835,6]
[346085102,1734695459432,-688.72,0.00023835,6]
[346085103,1734695459442,-500.0,0.00023835,6]
[346085104,1734695459451,-500.0,0.00023835,6]
[346085105,1734695459460,-870.15,0.00023835,6]
[346085106,1734695459469,-500.0,0.00023835,6]
[346085107,1734695459481,-229.0,0.0002393,12]
[346085108,1734695459491,-466.86856799,0.00023953,2]
[346085109,1734695459501,-600.0,0.00023964,2]
[346085110,1734695459510,-1500.0,0.00024022,2]
[346085111,1734695459519,-352.02932,0.00024023,2]
[346085112,1734695459529,-466.86856799,0.00024107,2]
[346085113,1734695459538,-420.0,0.00024107,2]
[346085114,1734695459547,-500.0,0.00024109,6]
[346085115,1734695459556,-500.0,0.00024109,6]
[346085116,1734695459566,-500.0,0.00024109,6]
[346085117,1734695459575,-500.0,0.00024109,6]
[346085118,1734695459585,-500.0,0.00024109,6]
[346085119,1734695459594,-500.0,0.00024109,6]
[346085120,1734695459649,-229.20458192,0.00024109,6]
[346085121,1734695459658,-500.0,0.00024109,6]
[346085122,1734695459667,-500.0,0.00024109,6]
[346085123,1734695459676,-500.0,0.00024109,6]
[346085124,1734695459685,-500.0,0.00024109,6]
[346085125,1734695459694,-500.0,0.00024109,6]
[346085126,1734695459703,-500.0,0.00024109,6]
[346085127,1734695459712,-500.0,0.00024109,6]
[346085128,1734695459721,-505.64,0.00024109,6]
[346085129,1734695459736,-500.0,0.00024109,6]
[346085130,1734695459746,-500.0,0.00024109,6]
[346085131,1734695459755,-500.0,0.00024109,6]
[346085132,1734695459765,-500.0,0.00024109,6]
[346085133,1734695459774,-792.84,0.00024109,6]
[346085134,1734695459783,-500.0,0.00024109,6]
[346085135,1734695459793,-500.0,0.00024109,6]
[346085136,1734695459802,-666.3,0.00024109,6]
[346085137,1734695459812,-500.0,0.00024109,6]
[346085138,1734695459821,-500.0,0.00024109,6]
[346085139,1734695459830,-500.0,0.00024109,6]
[346085140,1734695459840,-500.0,0.00024109,6]
[346085141,1734695459850,-622.06901486,0.00024109,6]
[346085142,1734695459859,-546.14,0.00024109,6]
[346085143,1734695459869,-500.0,0.00024109,6]
[346085144,1734695459878,-1569.66,0.00024109,6]
[346085145,1734695459887,-1153.1,0.00024109,6]
[346085146,1734695459897,-346.96515598,0.00024109,6]
[346085147,1734695459906,-500.0,0.00024109,6]
[346085148,1734695459916,-464.52627213,0.00024109,6]
[346085149,1734695459925,-825.59,0.00024109,6]
[346085150,1734695459934,-168.0,0.00024109,6]
[346085151,1734695459944,-500.0,0.00024109,6]
[346085152,1734695459953,-909.44,0.00024109,6]
[346085153,1734695459962,-661.6,0.00024109,6]
[346085154,1734695459971,-500.0,0.00024109,6]
[346085155,1734695459986,-500.0,0.00024109,6]
[346085156,1734695459996,-1058.73,0.00024109,6]
[346085157,1734695460005,-500.0,0.00024109,6]
[346085158,1734695460015,-500.0,0.00024109,6]
[346085159,1734695460024,-742.68,0.00024109,6]
[346085160,1734695460034,-500.0,0.00024109,6]
[346085161,1734695460044,-598.99,0.00024109,6]
[346085162,1734695460054,-500.0,0.00024109,6]
[346085163,1734695460064,-500.0,0.00024109,6]
[346085164,1734695460074,-500.0,0.00024109,6]
[346085165,1734695460084,-711.99,0.00024109,6]
[346085166,1734695460094,-500.0,0.00024109,6]
[346085167,1734695460104,-500.0,0.00024109,6]
[346085168,1734695460113,-500.0,0.00024109,6]
[346085169,1734695460122,-500.0,0.00024109,6]
[346085170,1734695460132,-500.0,0.00024109,6]
[346085171,1734695460141,-1097.79,0.00024109,6]
[346085172,1734695460151,-674.85,0.00024109,6]
[346085173,1734695460160,-739.83,0.00024109,6]
[346085174,1734695460169,-500.0,0.00024109,6]
[346085175,1734695460179,-1008.24,0.00024109,6]
[346085176,1734695460188,-500.0,0.00024109,6]
[346085177,1734695460199,-500.0,0.00024109,6]
[346085178,1734695460209,-500.0,0.00024109,6]
[346085179,1734695460218,-1499.78,0.00024109,2]
[346085180,1734695460231,-1499.78,0.00024109,2]
[346085181,1734695460240,-1499.78,0.00024109,2]
[346085182,1734695460250,-1499.78,0.00024109,2]
[346085183,1734695460259,-1499.78,0.00024109,2]
[346085184,1734695460269,-1499.78,0.00024109,2]
[346085185,1734695460279,-1499.78,0.00024109,2]
[346085186,1734695460290,-1499.78,0.00024109,2]
[346085187,1734695460300,-1499.78,0.00024109,2]
[346085188,1734695460309,-500.0,0.00024109,6]
[346085189,1734695460318,-500.0,0.00024109,6]
[346085190,1734695460327,-1582.09,0.00024109,6]
[346085191,1734695460337,-954.11,0.00024109,6]
[346085192,1734695460346,-500.0,0.00024109,6]
[346085193,1734695460356,-1591.5,0.00024109,6]
[346085194,1734695460365,-625.41,0.00024109,6]
[346085195,1734695460374,-974.47,0.00024109,6]
[346085196,1734695460384,-891.65,0.00024109,6]
[346085197,1734695460393,-940.38,0.00024109,6]
[346085198,1734695460402,-500.0,0.00024109,6]
[346085199,1734695460413,-500.0,0.00024109,6]
[346085200,1734695460422,-500.0,0.00024109,6]
[346085201,1734695460431,-500.0,0.00024109,6]
[346085202,1734695460440,-500.0,0.00024109,6]
[346085203,1734695460451,-1059.47,0.00024109,6]
[346085204,1734695460460,-500.0,0.00024109,6]
[346085205,1734695460469,-1737.43,0.00024109,6]
[346085206,1734695460481,-259.99158567,0.00024109,6]
[346085207,1734695460491,-8856.88,0.00024109,6]
[346085208,1734695460501,-1259.63,0.00024109,6]
[346085209,1734695460510,-604.9,0.00024109,6]
[346085210,1734695460519,-526.22895087,0.00024109,6]
[346085211,1734695460528,-500.0,0.00024109,6]
[346085212,1734695460538,-500.0,0.00024109,6]
[346085213,1734695460547,-350.0,0.00024109,2]
[346085214,1734695460556,-26119.07,0.00024109,6]
[346085215,1734695460565,-12484.53,0.00024109,6]
[346085216,1734695460574,-6479.93,0.00024109,6]
[346085217,1734695460583,-500.0,0.00024109,6]
[346085218,1734695460593,-500.0,0.00024109,6]
[346085219,1734695460602,-872.14,0.00024109,6]
[346085220,1734695460612,-500.0,0.00024109,6]
[346085221,1734695460621,-500.0,0.00024109,6]
[346085222,1734695460631,-500.0,0.00024109,6]
[346085223,1734695460640,-500.0,0.00024109,6]
[346085224,1734695460649,-1760.75,0.00024109,6]
[346085225,1734695460659,-500.0,0.00024109,6]
[346085226,1734695460668,-500.0,0.00024109,6]
[346085227,1734695460678,-6293.53,0.00024109,6]
[346085228,1734695460687,-500.0,0.00024109,6]
[346085229,1734695460697,-1957.09,0.00024109,6]
[346085230,1734695460707,-500.0,0.00024109,6]
[346085231,1734695460716,-500.0,0.00024109,6]
[346085232,1734695460729,-3441.37,0.00024109,6]
[346085233,1734695460738,-1705.94,0.00024109,6]
[346085234,1734695460748,-500.0,0.00024109,6]
[346085235,1734695460758,-1606.97,0.00024109,6]
[346085236,1734695460768,-500.0,0.00024109,6]